fUSD/lending_fUSD_20260629
["ID","MTS","AMOUNT","RATE_DAILY","PERIOD"]
[426691493,1782747041000,-913.0,0.00022598,2]
[426691492,1782747041000,-500.0,0.00022521,2]
[426691486,1782747041000,-390.0,0.00022,2]
[426691495,1782747041000,-910.0,0.00022598,2]
[426691494,1782747041000,-406.0,0.00022598,2]
[426691488,1782747041000,-169.67,0.00022123,7]
[426691491,1782747041000,-1577.8,0.00022466,2]
[426691519,1782747041000,-150666.82720605,0.00023765,120]
[426691523,1782747041000,-318.65999999,0.00023765,120]
[426691567,1782747041000,-301.01801874,0.00025048,2]
[426691548,1782747041000,-437.37,0.000239,7]
[426691549,1782747041000,-167.0,0.00024,2]
[426691550,1782747041000,-390.0,0.00024,2]
[426691551,1782747041000,-398.0,0.00024,2]
[426691554,1782747041000,-168.88,0.00024016,2]
[426691553,1782747041000,-1883.9934442,0.00024012,2]
[426691556,1782747041000,-1510.23,0.00024174,2]
[426691566,1782747041000,-401.0,0.00025,2]
[426691555,1782747041000,-150.0,0.00024164,2]
[426691546,1782747041000,-1451661.81477848,0.00023865,120]
[426691558,1782747041000,-13798.21,0.00024174,2]
[426691559,1782747041000,-502.0,0.00024522,8]
[426691560,1782747041000,-1000.0,0.00024658,2]
[426691565,1782747041000,-397.0,0.00025,2]
[426691563,1782747041000,-13658.64786751,0.00024964,2]
[426691564,1782747041000,-151.09934801,0.00024967,2]
[426691561,1782747041000,-546.48669753,0.00024721,7]
[426691562,1782747041000,-249.19796487,0.00024825,2]
[426691521,1782747041000,-1954.25481839,0.00023765,120]
[426691568,1782747041000,-335.41734816,0.00025102,2]
[426691557,1782747041000,-460.04,0.00024174,2]
[426691547,1782747041000,-1800.0,0.000239,8]
[426691552,1782747041000,-860.0,0.00024,7]
[426691545,1782747041000,-150.0,0.00023865,20]
[426691524,1782747041000,-1953.23343018,0.00023765,120]
[426691526,1782747041000,-4188.9182,0.00023765,2]
[426691530,1782747041000,-1300.0,0.000238,8]
[426691525,1782747041000,-598207.98806476,0.00023765,120]
[426691529,1782747041000,-150.50900937,0.00023786,2]
[426691532,1782747041000,-352.64707502,0.000238,2]
[426691544,1782747041000,-500.0,0.00023865,2]
[426691527,1782747041000,-20031.6454,0.00023765,2]
[426691528,1782747041000,-33336.8515,0.00023765,2]
[426691533,1782747041000,-1781.35856453,0.000238,2]
[426691534,1782747041000,-167.70867408,0.00023838,2]
[426691531,1782747041000,-266.46097856,0.000238,2]
[426691537,1782747041000,-172.20991957,0.00023838,2]
[426691540,1782747041000,-176.76167424,0.00023838,2]
[426691543,1782747041000,-500.0,0.00023865,2]
[426691538,1782747041000,-156.18045753,0.00023838,2]
[426691542,1782747041000,-500.0,0.00023865,2]
[426691541,1782747041000,-500.0,0.00023865,2]
[426691539,1782747041000,-160.4213485,0.00023838,2]
[426691535,1782747041000,-210.83380098,0.00023838,2]
[426691536,1782747041000,-181.64691066,0.00023838,2]
[426691622,1782747042000,-340.06545241,0.00025945,2]
[426691616,1782747042000,-516.62975871,0.00025945,2]
[426691618,1782747042000,-481.26404549,0.00025945,2]
[426691606,1782747042000,-249.02570055,0.00025945,2]
[426691604,1782747042000,-363.0178863,0.00025945,2]
[426691594,1782747042000,-167.33383345,0.00025536,2]
[426691603,1782747042000,-322.08945819,0.00025945,2]
[426691593,1782747042000,-243.0,0.0002552,2]
[426691599,1782747042000,-214.56933395,0.00025936,2]
[426691620,1782747042000,-314.5602404,0.00025945,2]
[426691602,1782747042000,-293.97346846,0.00025945,2]
[426691609,1782747042000,-217.79041123,0.00025945,2]
[426691628,1782747042000,-287.27261223,0.00025945,2]
[426691610,1782747042000,-323.75981607,0.00025945,2]
[426691608,1782747042000,-211.49669297,0.00025945,2]
[426691614,1782747042000,-468.5413726,0.00025945,2]
[426691607,1782747042000,-632.50140295,0.00025945,2]
[426691612,1782747042000,-544.94073198,0.00025945,2]
[426691631,1782747042000,-204.98046053,0.00025945,2]
[426691623,1782747042000,-159.9602403,0.00025945,2]
[426691624,1782747042000,-314.55666545,0.00025945,2]
[426691627,1782747042000,-249.93277666,0.00025945,2]
[426691626,1782747042000,-327.55037862,0.00025945,2]
[426691598,1782747042000,-451.52702811,0.0002589,2]
[426691611,1782747042000,-206.70039259,0.00025945,2]
[426691595,1782747042000,-151.09934801,0.00025639,2]
[426691572,1782747042000,-161.87990804,0.00025102,2]
[426691592,1782747042000,-3212.0855122,0.00025498,2]
[426691570,1782747042000,-181.50894315,0.00025102,2]
[426691569,1782747042000,-161.04472909,0.00025102,2]
[426691573,1782747042000,-363.29382132,0.00025102,2]
[426691576,1782747042000,-320.84269699,0.00025102,2]
[426691571,1782747042000,-421.66760197,0.00025102,2]
[426691574,1782747042000,-312.36091507,0.00025102,2]
[426691575,1782747042000,-344.41983914,0.00025102,2]
[426691578,1782747042000,-170.03272621,0.00025102,2]
[426691577,1782747042000,-157.2801202,0.00025102,2]
[426691590,1782747042000,-150.0,0.00025373,2]
[426691580,1782747042000,-163.77518931,0.00025102,2]
[426691596,1782747042000,-207.14863088,0.0002589,2]
[426691581,1782747042000,-163.86904855,0.00025102,2]
[426691584,1782747042000,-187.38664557,0.00025102,2]
[426691582,1782747042000,-158.0203007,0.00025102,2]
[426691583,1782747042000,-156.69800271,0.00025102,2]
[426691585,1782747042000,-353.52334847,0.00025102,2]
[426691588,1782747042000,-797.2057244,0.00025246,2]
[426691586,1782747042000,-437.37,0.000252,7]
[426691589,1782747042000,-151.09934801,0.00025303,2]
[426691587,1782747042000,-2478.2374671,0.00025209,2]
[426691591,1782747042000,-502.0,0.00025463,9]
[426691601,1782747042000,-503.12602224,0.00025945,2]
[426691600,1782747042000,-195.72803427,0.00025936,2]
[426691579,1782747042000,-157.27833272,0.00025102,2]
[426691625,1782747042000,-187.22844565,0.00025945,2]
[426691675,1782747042000,-670.83469632,0.00026507,2]
[426691629,1782747042000,-327.7380971,0.00025945,2]
[426691658,1782747042000,-210.59438037,0.00026451,2]
[426691663,1782747042000,-580.01616647,0.00026498,2]
[426691659,1782747042000,-602.03603748,0.00026451,2]
[426691664,1782747042000,-204.45244548,0.00026498,2]
[426691667,1782747042000,-171.48095675,0.00026498,2]
[426691666,1782747042000,-339.5826762,0.00026498,2]
[426691668,1782747042000,-394.21462644,0.00026498,2]
[426691669,1782747042000,-301.40814249,0.00026498,2]
[426691670,1782747042000,-359.82083652,0.00026498,2]
[426691673,1782747042000,-437.37,0.000265,7]
[426691672,1782747042000,-182.19533271,0.00026498,2]
[426691661,1782747042000,-212.79644829,0.00026498,2]
[426691671,1782747042000,-182.11338867,0.00026498,2]
[426691677,1782747042000,-483.13418728,0.00026507,2]
[426691676,1782747042000,-587.94693693,0.00026507,2]
[426691679,1782747042000,-544.52682946,0.00026507,2]
[426691678,1782747042000,-426.00662091,0.00026507,2]
[426691681,1782747042000,-843.33520393,0.00026507,2]
[426691684,1782747042000,-287.75639426,0.00026507,2]
[426691680,1782747042000,-498.05140109,0.00026507,2]
[426691683,1782747042000,-402.09013188,0.00026507,2]
[426691685,1782747042000,-435.58082245,0.00026507,2]
[426691682,1782747042000,-422.99338594,0.00026507,2]
[426691635,1782747042000,-374.77329113,0.00025945,2]
[426691674,1782747042000,-174.19192964,0.00026507,2]
[426691660,1782747042000,-220.916999,0.00026498,2]
[426691665,1782747042000,-391.45606855,0.00026498,2]
[426691656,1782747042000,-414.29726177,0.00026451,2]
[426691630,1782747042000,-219.32478595,0.00025945,2]
[426691662,1782747042000,-429.13866789,0.00026498,2]
[426691633,1782747042000,-313.39600542,0.00025945,2]
[426691632,1782747042000,-316.04060141,0.00025945,2]
[426691634,1782747042000,-193.93248816,0.00025945,2]
[426691637,1782747042000,-201.68349926,0.00025945,2]
[426691636,1782747042000,-279.77113867,0.00025945,2]
[426691648,1782747042000,-151.09934801,0.00025975,2]
[426691638,1782747042000,-213.48123565,0.00025945,2]
[426691644,1782747042000,-253.21947136,0.00025953,2]
[426691641,1782747042000,-530.28502271,0.00025945,2]
[426691639,1782747042000,-274.87090533,0.00025945,2]
[426691643,1782747042000,-298.60188568,0.00025953,2]
[426691647,1782747042000,-220.74153862,0.00025953,2]
[426691640,1782747042000,-278.14556755,0.00025945,2]
[426691653,1782747042000,-151.09934801,0.00026311,2]
[426691657,1782747042000,-204.48290659,0.00026451,2]
[426691654,1782747042000,-502.0,0.00026403,10]
[426691652,1782747042000,-13658.64786751,0.00026263,2]
[426691651,1782747042000,-152.0,0.00026226,5]
[426691655,1782747042000,-218.5942743,0.00026451,2]
[426691649,1782747042000,-1442.18704105,0.00026221,14]
[426691646,1782747042000,-202.49195897,0.00025953,2]
[426691645,1782747042000,-229.26820542,0.00025953,2]
[426691642,1782747042000,-183.70029703,0.00025953,2]
[426691650,1782747042000,-2544.18888831,0.00026221,14]
[426691726,1782747043000,-151.09934801,0.00026647,2]
[426691725,1782747043000,-150.0,0.00026641,2]
[426691724,1782747043000,-404.98391794,0.00026515,2]
[426691722,1782747043000,-506.43894271,0.00026515,2]
[426691732,1782747043000,-883.80837118,0.00027069,2]
[426691721,1782747043000,-597.20377137,0.00026515,2]
[426691723,1782747043000,-458.53641085,0.00026515,2]
[426691719,1782747043000,-707.04669694,0.00026507,2]
[426691711,1782747043000,-387.86497633,0.00026507,2]
[426691720,1782747043000,-367.40059406,0.00026515,2]
[426691730,1782747043000,-861.04959785,0.00027069,2]
[426691733,1782747043000,-912.3165227,0.00027135,2]
[426691728,1782747043000,-752.54504685,0.0002706,2]
[426691745,1782747043000,-179.71008064,0.00027397,10]
[426691731,1782747043000,-802.10674248,0.00027069,2]
[426691729,1782747043000,-780.90228767,0.00027069,2]
[426691738,1782747043000,-502.0,0.00027343,11]
[426691746,1782747043000,-179.71008064,0.00027397,10]
[426691735,1782747043000,-2478.2374671,0.00027237,2]
[426691736,1782747043000,-65274.0,0.000273,2]
[426691739,1782747043000,-179.71008064,0.00027397,10]
[426691740,1782747043000,-179.71008064,0.00027397,10]
[426691743,1782747043000,-179.71008064,0.00027397,10]
[426691741,1782747043000,-179.71008064,0.00027397,10]
[426691734,1782747043000,-179438.2859222,0.00027135,2]
[426691737,1782747043000,-151.09934801,0.00027319,2]
[426691718,1782747043000,-342.91394514,0.00026507,2]
[426691727,1782747043000,-151.09934801,0.00026983,2]
[426691716,1782747043000,-549.74181067,0.00026507,2]
[426691687,1782747043000,-413.40078519,0.00026507,2]
[426691717,1782747043000,-556.29113511,0.00026507,2]
[426691742,1782747043000,-179.71008064,0.00027397,10]
[426691686,1782747043000,-485.63972411,0.00026507,2]
[426691690,1782747043000,-688.83967828,0.00026507,2]
[426691689,1782747043000,-624.72183014,0.00026507,2]
[426691691,1782747043000,-641.68539398,0.00026507,2]
[426691697,1782747043000,-319.96830724,0.00026507,2]
[426691694,1782747043000,-319.92048059,0.00026507,2]
[426691692,1782747043000,-471.8403606,0.00026507,2]
[426691688,1782747043000,-726.58764264,0.00026507,2]
[426691693,1782747043000,-510.09817862,0.00026507,2]
[426691695,1782747043000,-323.84535204,0.00026507,2]
[426691709,1782747043000,-284.04385911,0.00026507,2]
[426691699,1782747043000,-491.32556793,0.00026507,2]
[426691698,1782747043000,-164.36863685,0.00026507,2]
[426691701,1782747043000,-574.54522446,0.00026507,2]
[426691700,1782747043000,-310.99386043,0.00026507,2]
[426691702,1782747043000,-384.57520283,0.00026507,2]
[426691703,1782747043000,-178.93603588,0.00026507,2]
[426691706,1782747043000,-409.96092106,0.00026507,2]
[426691705,1782747043000,-438.64957189,0.00026507,2]
[426691704,1782747043000,-491.60714565,0.00026507,2]
[426691708,1782747043000,-474.06090211,0.00026507,2]
[426691707,1782747043000,-208.93299555,0.00026507,2]
[426691710,1782747043000,-470.09400814,0.00026507,2]
[426691713,1782747043000,-559.54227735,0.00026507,2]
[426691712,1782747043000,-562.1599367,0.00026507,2]
[426691714,1782747043000,-403.36699853,0.00026507,2]
[426691715,1782747043000,-426.96247131,0.00026507,2]
[426691744,1782747043000,-179.71008064,0.00027397,10]
[426691696,1782747043000,-471.83499817,0.00026507,2]
[426691747,1782747043000,-179.71008064,0.00027397,10]
[426691775,1782747043000,-155.93639075,0.00027397,2]
[426691781,1782747043000,-1882.8,0.000274,2]
[426691783,1782747043000,-1882.8,0.000274,2]
[426691785,1782747043000,-500.0,0.000275,7]
[426691795,1782747043000,-222.14,0.0002758,7]
[426691794,1782747043000,-220.55,0.0002758,7]
[426691793,1782747043000,-13658.64786751,0.00027562,2]
[426691796,1782747043000,-220.55,0.00027611,30]
[426691786,1782747043000,-220.55,0.0002755,2]
[426691789,1782747043000,-976.17,0.0002755,30]
[426691788,1782747043000,-351.84,0.0002755,30]
[426691784,1782747043000,-1882.8,0.000274,2]
[426691787,1782747043000,-563.45,0.0002755,30]
[426691790,1782747043000,-222.14,0.0002755,2]
[426691792,1782747043000,-354.33,0.0002755,30]
[426691791,1782747043000,-563.54,0.0002755,30]
[426691799,1782747043000,-222.14,0.00027641,2]
[426691806,1782747043000,-351.84,0.00027711,7]
[426691797,1782747043000,-222.14,0.00027611,30]
[426691803,1782747043000,-220.55,0.00027702,30]
[426691801,1782747043000,-220.55,0.00027672,7]
[426691802,1782747043000,-222.14,0.00027672,7]
[426691800,1782747043000,-151.09934801,0.00027655,2]
[426691798,1782747043000,-220.55,0.00027641,2]
[426691805,1782747043000,-563.45,0.00027711,7]
[426691804,1782747043000,-222.14,0.00027702,30]
[426691748,1782747043000,-179.71008064,0.00027397,10]
[426691776,1782747043000,-311.8727815,0.00027397,2]
[426691772,1782747043000,-171.53134051,0.00027397,2]
[426691807,1782747043000,-976.17,0.00027711,7]
[426691778,1782747043000,-1859.14,0.000274,7]
[426691777,1782747043000,-1580.07,0.000274,7]
[426691758,1782747043000,-396.84249185,0.00027397,2]
[426691759,1782747043000,-1500.0,0.00027397,2]
[426691756,1782747043000,-179.71008064,0.00027397,10]
[426691754,1782747043000,-179.71008064,0.00027397,10]
[426691751,1782747043000,-179.71008064,0.00027397,10]
[426691750,1782747043000,-179.71008064,0.00027397,10]
[426691752,1782747043000,-179.71008064,0.00027397,10]
[426691753,1782747043000,-179.71008064,0.00027397,10]
[426691755,1782747043000,-179.71008064,0.00027397,10]
[426691757,1782747043000,-179.71008064,0.00027397,10]
[426691760,1782747043000,-160.0,0.00027397,10]
[426691761,1782747043000,-160.0,0.00027397,10]
[426691762,1782747043000,-1026.86,0.00027397,2]
[426691749,1782747043000,-179.71008064,0.00027397,10]
[426691763,1782747043000,-300.0,0.00027397,2]
[426691764,1782747043000,-3098.76,0.00027397,2]
[426691774,1782747043000,-514.59402153,0.00027397,2]
[426691782,1782747043000,-1882.8,0.000274,2]
[426691779,1782747043000,-161.19607867,0.000274,2]
[426691771,1782747043000,-681.8752427,0.00027397,2]
[426691773,1782747043000,-343.06268102,0.00027397,2]
[426691766,1782747043000,-5562.3,0.00027397,10]
[426691768,1782747043000,-170.46881067,0.00027397,2]
[426691770,1782747043000,-511.40643202,0.00027397,2]
[426691765,1782747043000,-4304.5,0.00027397,10]
[426691780,1782747043000,-1882.8,0.000274,2]
[426691769,1782747043000,-340.93762135,0.00027397,2]
[426691767,1782747043000,-4635.25,0.00027397,10]
[426691853,1782747044000,-976.17,0.00028033,30]
[426691833,1782747044000,-903.05405622,0.00027902,2]
[426691836,1782747044000,-937.08274521,0.00027912,2]
[426691841,1782747044000,-222.14,0.00027946,7]
[426691839,1782747044000,-222.14,0.00027916,2]
[426691844,1782747044000,-220.55,0.00027977,30]
[426691837,1782747044000,-962.52809097,0.00027912,2]
[426691838,1782747044000,-220.55,0.00027916,2]
[426691843,1782747044000,-150.0,0.00027973,2]
[426691842,1782747044000,-852.34405337,0.00027958,2]
[426691840,1782747044000,-220.55,0.00027946,7]
[426691845,1782747044000,-222.14,0.00027977,30]
[426691851,1782747044000,-563.45,0.00028033,30]
[426691856,1782747044000,-220.55,0.00028038,7]
[426691855,1782747044000,-354.33,0.00028033,30]
[426691852,1782747044000,-351.84,0.00028033,30]
[426691849,1782747044000,-220.55,0.00028007,2]
[426691847,1782747044000,-216.58458871,0.00028,10]
[426691848,1782747044000,-412.0,0.00028002,2]
[426691846,1782747044000,-151.09934801,0.00027991,2]
[426691850,1782747044000,-222.14,0.00028007,2]
[426691835,1782747044000,-1033.25951742,0.00027912,2]
[426691857,1782747044000,-222.14,0.00028038,7]
[426691854,1782747044000,-563.54,0.00028033,30]
[426691832,1782747044000,-178.71008064,0.000279,10]
[426691818,1782747044000,-220.55,0.00027824,2]
[426691828,1782747044000,-563.54,0.00027872,2]
[426691858,1782747044000,-216.58458871,0.0002804,7]
[426691808,1782747044000,-563.54,0.00027711,7]
[426691809,1782747044000,-354.33,0.00027711,7]
[426691811,1782747044000,-222.14,0.00027733,2]
[426691821,1782747044000,-483.0,0.0002784,2]
[426691810,1782747044000,-220.55,0.00027733,2]
[426691820,1782747044000,-1172.0,0.0002784,2]
[426691816,1782747044000,-222.14,0.00027794,30]
[426691815,1782747044000,-220.55,0.00027794,30]
[426691817,1782747044000,-437.37,0.000278,7]
[426691812,1782747044000,-160.0,0.00027763,7]
[426691813,1782747044000,-220.55,0.00027763,7]
[426691819,1782747044000,-222.14,0.00027824,2]
[426691814,1782747044000,-222.14,0.00027763,7]
[426691824,1782747044000,-222.14,0.00027855,7]
[426691825,1782747044000,-563.45,0.00027872,2]
[426691822,1782747044000,-243.0,0.0002784,2]
[426691831,1782747044000,-222.14,0.00027885,30]
[426691830,1782747044000,-220.55,0.00027885,30]
[426691823,1782747044000,-220.55,0.00027855,7]
[426691826,1782747044000,-351.84,0.00027872,2]
[426691829,1782747044000,-354.33,0.00027872,2]
[426691827,1782747044000,-976.17,0.00027872,2]
[426691834,1782747044000,-471.01122156,0.00027906,2]
[426691859,1782747044000,-220.55,0.00028068,30]
[426691861,1782747044000,-220.55,0.00028099,2]
[426691860,1782747044000,-222.14,0.00028068,30]
[426691884,1782747044000,-656.74606291,0.000286,2]
[426691886,1782747044000,-1041.26830661,0.000286,2]
[426691885,1782747044000,-197.19051787,0.000286,2]
[426691894,1782747044000,-240.43609651,0.00028663,2]
[426691905,1782747044000,-153.0,0.00028733,30]
[426691904,1782747044000,-390.0,0.00028733,30]
[426691903,1782747044000,-154.0,0.00028728,30]
[426691893,1782747044000,-342.66032286,0.00028658,2]
[426691895,1782747044000,-151.09934801,0.00028663,2]
[426691897,1782747044000,-155.0,0.00028705,30]
[426691902,1782747044000,-157.0,0.00028728,30]
[426691900,1782747044000,-158.0,0.00028728,30]
[426691896,1782747044000,-976.17,0.00028677,7]
[426691898,1782747044000,-154.0,0.00028728,30]
[426691901,1782747044000,-151.0,0.00028728,30]
[426691909,1782747044000,-1000.0,0.00028767,2]
[426691906,1782747044000,-157.0,0.00028733,30]
[426691908,1782747044000,-160.0,0.00028733,30]
[426691911,1782747044000,-976.17,0.00028838,2]
[426691910,1782747044000,-1022.81286405,0.000288,2]
[426691912,1782747044000,-13658.64786751,0.00028861,2]
[426691907,1782747044000,-398.0,0.00028733,30]
[426691913,1782747044000,-333.68291274,0.000289,2]
[426691890,1782747044000,-216.58458871,0.00028613,2]
[426691888,1782747044000,-1580.07,0.000286,7]
[426691899,1782747044000,-158.0,0.00028728,30]
[426691892,1782747044000,-160.0,0.00028613,2]
[426691889,1782747044000,-1859.14,0.000286,7]
[426691863,1782747044000,-160.0,0.000281,30]
[426691865,1782747044000,-942.77056365,0.00028101,2]
[426691864,1782747044000,-5528.0,0.000281,3]
[426691866,1782747044000,-701.84285937,0.00028101,2]
[426691868,1782747044000,-220.69,0.0002813,7]
[426691862,1782747044000,-222.14,0.00028099,2]
[426691869,1782747044000,-222.2,0.0002813,7]
[426691878,1782747044000,-151.09934801,0.00028327,2]
[426691875,1782747044000,-354.33,0.00028194,7]
[426691876,1782747044000,-502.0,0.00028284,12]
[426691879,1782747044000,-976.17,0.00028355,2]
[426691867,1782747044000,-217.97,0.0002813,7]
[426691880,1782747044000,-976.17,0.00028516,30]
[426691891,1782747044000,-160.0,0.00028613,2]
[426691887,1782747044000,-182.3488221,0.000286,2]
[426691883,1782747044000,-10805.54579392,0.000286,2]
[426691882,1782747044000,-333.68291274,0.000286,2]
[426691870,1782747044000,-563.91,0.00028194,7]
[426691881,1782747044000,-500.0,0.00028575,2]
[426691874,1782747044000,-563.54,0.00028194,7]
[426691873,1782747044000,-976.17,0.00028194,7]
[426691872,1782747044000,-351.84,0.00028194,7]
[426691877,1782747044000,-158.5808304,0.000283,2]
[426691871,1782747044000,-563.45,0.00028194,7]
[426691955,1782747045000,-151.09934801,0.00029672,2]
[426691952,1782747045000,-197.19051787,0.000295,2]
[426691964,1782747045000,-154.0,0.00029728,30]
[426691953,1782747045000,-1041.26830661,0.000295,2]
[426691947,1782747045000,-305.33,0.00029479,2]
[426691945,1782747045000,-151.09934801,0.00029336,2]
[426691942,1782747045000,-502.0,0.00029224,13]
[426691950,1782747045000,-10805.54579392,0.000295,2]
[426691951,1782747045000,-656.74606291,0.000295,2]
[426691946,1782747045000,-150.0,0.00029372,2]
[426691963,1782747045000,-157.0,0.00029728,30]
[426691948,1782747045000,-168.45317309,0.00029491,2]
[426691954,1782747045000,-305.33,0.00029644,2]
[426691967,1782747045000,-157.0,0.00029733,30]
[426691957,1782747045000,-1859.14,0.000297,7]
[426691956,1782747045000,-1580.07,0.000297,7]
[426691959,1782747045000,-154.0,0.00029728,30]
[426691960,1782747045000,-158.0,0.00029728,30]
[426691962,1782747045000,-151.0,0.00029728,30]
[426691961,1782747045000,-158.0,0.00029728,30]
[426691965,1782747045000,-390.0,0.00029733,30]
[426691966,1782747045000,-153.0,0.00029733,30]
[426691975,1782747045000,-2300.0,0.000299,10]
[426691976,1782747045000,-240.66525968,0.000299,2]
[426691969,1782747045000,-333.68291274,0.000298,2]
[426691968,1782747045000,-398.0,0.00029733,30]
[426691949,1782747045000,-333.68291274,0.000295,2]
[426691958,1782747045000,-155.0,0.00029705,30]
[426691944,1782747045000,-305.33,0.00029315,2]
[426691919,1782747045000,-1047.81561943,0.00028973,2]
[426691941,1782747045000,-333.83,0.00029223,120]
[426691914,1782747045000,-10805.54579392,0.000289,2]
[426691915,1782747045000,-656.74606291,0.000289,2]
[426691916,1782747045000,-197.19051787,0.000289,2]
[426691970,1782747045000,-10805.54579392,0.000298,2]
[426691917,1782747045000,-1041.26830661,0.000289,2]
[426691920,1782747045000,-151.09934801,0.00029,2]
[426691918,1782747045000,-1023.68712059,0.00028973,2]
[426691921,1782747045000,-1000.0,0.00029,2]
[426691924,1782747045000,-216.58458871,0.00029,30]
[426691923,1782747045000,-166.37127593,0.00029,2]
[426691928,1782747045000,-976.19,0.00029,30]
[426691927,1782747045000,-247.70924448,0.00029,2]
[426691922,1782747045000,-240.21,0.00029,7]
[426691926,1782747045000,-437.37,0.00029,7]
[426691925,1782747045000,-155.95516857,0.00029,2]
[426691930,1782747045000,-1205.46943699,0.00029177,2]
[426691938,1782747045000,-197.19051787,0.000292,2]
[426691939,1782747045000,-1041.26830661,0.000292,2]
[426691940,1782747045000,-319.55,0.00029223,120]
[426691929,1782747045000,-5528.0,0.00029,5]
[426691931,1782747045000,-1093.26320274,0.00029177,2]
[426691932,1782747045000,-1122.94943947,0.00029177,2]
[426691936,1782747045000,-10805.54579392,0.000292,2]
[426691935,1782747045000,-333.68291274,0.000292,2]
[426691933,1782747045000,-1140.59032487,0.00029177,2]
[426691934,1782747045000,-214.09006206,0.00029189,7]
[426691937,1782747045000,-656.74606291,0.000292,2]
[426691943,1782747045000,-2478.2374671,0.00029264,2]
[426691974,1782747045000,-305.33,0.00029808,2]
[426692030,1782747045000,-1000.13,0.00030136,2]
[426691971,1782747045000,-656.74606291,0.000298,2]
[426692006,1782747045000,-151.09934801,0.00030008,2]
[426692008,1782747045000,-319.55,0.00030045,120]
[426692013,1782747045000,-500.0,0.00030136,15]
[426692009,1782747045000,-333.83,0.00030045,120]
[426692010,1782747045000,-10805.54579392,0.000301,2]
[426692012,1782747045000,-500.0,0.00030136,15]
[426692011,1782747045000,-437.37,0.000301,7]
[426692014,1782747045000,-500.0,0.00030136,15]
[426692017,1782747045000,-500.0,0.00030136,15]
[426692021,1782747045000,-1000.13,0.00030136,2]
[426692019,1782747045000,-500.0,0.00030136,15]
[426692020,1782747045000,-1000.13,0.00030136,2]
[426692018,1782747045000,-500.0,0.00030136,15]
[426692028,1782747045000,-1000.13,0.00030136,2]
[426692022,1782747045000,-1000.13,0.00030136,2]
[426692023,1782747045000,-1000.13,0.00030136,2]
[426692029,1782747045000,-1000.13,0.00030136,2]
[426692027,1782747045000,-1000.13,0.00030136,2]
[426692024,1782747045000,-1000.13,0.00030136,2]
[426692025,1782747045000,-1000.13,0.00030136,2]
[426692026,1782747045000,-1000.13,0.00030136,2]
[426692031,1782747045000,-1000.13,0.00030136,2]
[426692034,1782747045000,-1000.13,0.00030136,2]
[426691972,1782747045000,-197.19051787,0.000298,2]
[426692036,1782747045000,-1000.13,0.00030136,2]
[426692035,1782747045000,-1000.13,0.00030136,2]
[426692032,1782747045000,-1000.13,0.00030136,2]
[426692007,1782747045000,-171.65686762,0.00030033,2]
[426692016,1782747045000,-500.0,0.00030136,15]
[426692033,1782747045000,-1000.13,0.00030136,2]
[426692015,1782747045000,-500.0,0.00030136,15]
[426692004,1782747045000,-200.14986379,0.0003,2]
[426691973,1782747045000,-1041.26830661,0.000298,2]
[426691978,1782747045000,-240.6652596,0.000299,2]
[426691979,1782747045000,-240.6652596,0.000299,2]
[426691988,1782747045000,-240.6652596,0.000299,2]
[426691989,1782747045000,-240.6652596,0.000299,2]
[426691980,1782747045000,-240.6652596,0.000299,2]
[426691981,1782747045000,-240.6652596,0.000299,2]
[426691982,1782747045000,-240.6652596,0.000299,2]
[426691986,1782747045000,-240.6652596,0.000299,2]
[426691984,1782747045000,-240.6652596,0.000299,2]
[426691987,1782747045000,-240.6652596,0.000299,2]
[426691983,1782747045000,-240.6652596,0.000299,2]
[426691985,1782747045000,-240.6652596,0.000299,2]